Cogmind - Beta 16 @@@ ROGUE MODE // 2025.10.28 @ 02:06:20 Player: Sol Result: Destroyed by S-10 Pest with Light Assault Rifle Performance ------------- Evolutions (1) 500 Regions Visited (4) 800 Robots Destroyed (54) 270 Value Destroyed (2381) 2381 Prototype IDs (2) 40 Alien Tech Used (0) 0 Bonus (859) 859 TOTAL SCORE: 4850 Bonus ------- High Alert Combat Kills 222 Follower Combat Kills 437 Entered Garrisons 200 Cogmind --------- Core Integrity 0/400 Matter 21/300 Energy 100/100 System Corruption 3% Temperature Cool (0) Movement Core (50) Location -9/Garrison Parts ------- > --- POWER (1) -------- (None) > --- PROPULSION (3) --- (None) > --- UTILITY (3) ------ (None) > --- WEAPON (2) ------- (None) > --- INVENTORY (5) ---- Aluminum Leg Aluminum Leg Compact Matter Pod (150) Relay Coupler [Grunt] (31) Peak State ------------ > --- POWER ------------ Light Nuclear Core > --- PROPULSION ------- Improved Aluminum Leg Improved Aluminum Leg Improved Aluminum Leg > --- UTILITY ---------- Medium Storage Unit Improved Terrain Scan Processor Drone Bay > --- WEAPON ----------- Improved Light Cannon Improved Light Cannon > --- INVENTORY -------- Ion Engine Aluminum Leg Aluminum Leg Compact Matter Pod Seismic Detector Improved Light Cannon Mini Grenade Launcher [Rating: 23] Favorites ----------- Power Light Nuclear Core Engine Ion Engine Power Core Light Nuclear Core Propulsion Improved Aluminum Leg Leg Improved Aluminum Leg Utility Medium Storage Unit Device Drone Bay Storage Medium Storage Unit Processor Improved Terrain Scan Processor Weapon Improved Light Cannon Energy Gun Beam Rifle Ballistic Gun Light Assault Rifle Ballistic Cannon Improved Light Cannon Launcher Mini Grenade Launcher Build | -11 -10 -9 -9 -9 ------- Run | Yrd Mat Mat Sto Gar Slots Evolved 2 | . . 2 . . Power . | . . . . . Propulsion 1 | . . 1 . . Utility 1 | . . 1 . . Weapon . | . . . . . Parts Attached 36 | 6 9 2 9 10 Power 5 | 1 . . 2 2 Engine 4 | 1 . . 1 2 Core 1 | . . . 1 . Reactor . | . . . . . Propulsion 11 | 2 3 . 4 2 Treads . | . . . . . Leg 11 | 2 3 . 4 2 Wheel . | . . . . . Hover . | . . . . . Flight . | . . . . . Utility 6 | 1 1 2 2 . Device 2 | . . . 2 . Storage 2 | 1 . 1 . . Processor 2 | . 1 1 . . Hackware . | . . . . . Protection . | . . . . . Artifact . | . . . . . Weapon 14 | 2 5 . 1 6 Energy Gun 1 | . . . . 1 Energy Cannon . | . . . . . Ballistic Gun 7 | 2 3 . . 2 Ballistic Cannon 4 | . 2 . 1 1 Launcher 2 | . . . . 2 Special Weapon . | . . . . . Impact Weapon . | . . . . . Slashing Weapon . | . . . . . Piercing Weapon . | . . . . . Special Melee Weapon . | . . . . . Unidentified Prototypes . | . . . . . Parts Lost 14 | . 1 . 1 12 Power 1 | . . . . 1 Propulsion 5 | . 1 . . 4 Utility 2 | . . . 1 1 Weapon 6 | . . . . 6 Highest Loss Streak 6 | . 1 . 1 6 To Critical Strikes . | . . . . . Average Backups 6 | . 3 6 7 6 Power . | . 1 1 1 . Propulsion 1 | . . . 1 2 Utility 1 | . . . 1 2 Weapon 2 | . 1 4 3 1 Tool/Special . | . . . . . Unused Backups 4 | . 1 . . 3 Power 1 | . . . . 1 Propulsion . | . . . . . Utility 2 | . . . . 2 Weapon 1 | . 1 . . . Tool/Special . | . . . . . Average Slot Usage (%) 92 | . 96 92 94 90 Engine 5 | . 14 11 5 3 Core 5 | . . . 5 6 Leg 30 | . 26 29 33 29 Device 6 | . . . 8 7 Storage 11 | . 14 11 11 10 Processor 12 | . 11 18 13 10 Ballistic Gun 3 | . 27 . . . Ballistic Cannon 16 | . . 22 17 19 Peak Build Rating 23 | 6 10 15 23 23 Average Rating 17 | 4 7 14 19 18 On Entrance 10 | . 6 10 15 23 Avg Prop Armor Cover (%) . | . . . . . Naked Turns 50 | . . . . 50 Heaviest Build 29 | 12 18 23 29 29 Greatest Support 41 | 20 20 30 39 41 Greatest Overweight (x) 3 | 3 1 . 1 2 Average Overweight (x) . | . . . . . Largest Inventory Capacity 10 | 8 8 10 10 10 Average Capacity 9 | 7 8 9 10 9 Most Carried 9 | 2 7 7 9 9 Average Carried 6 | . 3 6 7 6 Final Capacity 10 | 8 8 10 10 5 Final Carried 7 | 2 7 7 7 4 Class Distribution -------------------- 86% | Mutant 13% | Scavenger-Mutant Dominant Class ---------------- Mutant | -10/Materials Scavenger-Mutant | -9/Materials Mutant | -9/Storage Mutant | -9/Garrison Resources | -11 -10 -9 -9 -9 ----------- Run | Yrd Mat Mat Sto Gar Matter Collected 1633 | 201 213 . 659 560 Remotely . | . . . . . Salvage Created 1451 | . 314 . 512 625 Parts 95 | . 24 . 28 43 Haulers Intercepted . | . . . . . Recyclers Shooed 3 | . . . 3 . Parts Field Recycled . | . . . . . Retrieved Matter . | . . . . . Parts Self-Destructed . | . . . . . Prevented . | . . . . . Parts Restored . | . . . . . Kills | -11 -10 -9 -9 -9 ------- Run | Yrd Mat Mat Sto Gar Combat Hostiles Destroyed 48 | . 10 . 14 24 Melee 1 | . . . . 1 Guns 12 | . 10 . . 2 Cannons 32 | . . . 14 18 AOE 3 | . . . . 3 Classes Destroyed 12 | . 3 . 5 4 Builder 1 | . . . 1 . Mechanic 1 | . . . . 1 Operator 1 | . . . 1 . Watcher 3 | . 2 . 1 . Swarmer 11 | . 6 . . 5 Grunt 16 | . 4 . 6 6 Brawler 1 | . . . 1 . Duelist 3 | . . . 1 2 Sentry 12 | . . . 6 6 Demolisher 1 | . . . . 1 Specialist 1 | . . . . 1 Hunter 3 | . . . . 3 Best Kill Streak 6 | . 3 . 6 3 Combat Bots Only 6 | . 3 . 6 3 Max Kills in Single Turn 2 | . 1 . 2 1 Gunslinging . | . . . . . Exploded 1 | . . . . 1 Melee 1 | . . . . 1 Uniques/NPCs Destroyed . | . . . . . Combat | -11 -10 -9 -9 -9 -------- Run | Yrd Mat Mat Sto Gar Hostile Shots Fired 226 | . 55 9 43 119 Missed 68 | . 15 3 15 35 Hits 158 | . 40 6 28 84 Melee 11 | . . . 5 6 Projectile 147 | . 40 6 23 78 AOE 10 | . . . . 10 Critical Strikes 11 | . 5 1 3 2 Damage Taken 2513 | . 447 49 480 1537 Core 465 | . 63 . 80 322 Absorbed by Shields . | . . . . . Core Remaining (%) 87 | 100 74 . . . Volleys Fired 180 | . 49 1 46 84 Largest 2 | . 2 2 2 2 Hottest 89 | . 40 66 66 89 Shots Fired 339 | . 98 2 79 160 Gun 111 | . 98 . . 13 Cannon 216 | . . 2 79 135 Launcher 12 | . . . . 12 Special . | . . . . . Kinetic 323 | . 98 2 79 144 Thermal 4 | . . . . 4 Explosive 12 | . . . . 12 Electromagnetic . | . . . . . Robot Hit Streak 13 | . 11 7 11 13 Robot Miss Streak 5 | . 3 1 5 3 Penetration Max . | . . . . . Secondary Targets 1 | . 1 . . . Max Gunslinging Chain 1 | . 1 . . . Shots Hit Robots 198 | . 64 1 47 86 Core Hits 81 | . 23 . 21 37 Critical Kills . | . . . . . Critical Parts Destroyed . | . . . . . Critical Strikes 11 | . . . 5 6 Blast 11 | . . . 5 6 Melee Attacks . | . . . . . Impact . | . . . . . Slashing . | . . . . . Piercing . | . . . . . Sneak Attacks . | . . . . . Combat Hostiles . | . . . . . Follow-up Attacks . | . . . . . Damage Inflicted 3488 | . 508 21 1138 1821 Guns 627 | . 504 . . 123 Cannons 2473 | . . 21 1117 1335 Explosions 350 | . . . . 350 Melee . | . . . . . Ramming 38 | . 4 . 21 13 Kinetic 3055 | . 504 21 1117 1413 Thermal 45 | . . . . 45 Explosive 350 | . . . . 350 Electromagnetic . | . . . . . Impact . | . . . . . Slashing . | . . . . . Piercing . | . . . . . Highest Corruption 3 | . . . 3 3 Average Corruption 3 | . . . 3 3 Corruption Purged . | . . . . . Corruption Blocked . | . . . . . Effects 31 | . . . 9 22 Message Errors 5 | . . . 1 4 Matter Fused 6 | . . . 3 3 Heat Flow Errors 3 | . . . 1 2 Energy Discharges 4 | . . . 1 3 Parts Rejected 2 | . . . 1 1 Data Loss (minor) 6 | . . . 1 5 Data Loss (major) 4 | . . . 1 3 Misfires 1 | . . . . 1 Overload Shots . | . . . . . Overflow Damage 18 | . . . . 18 Projectiles 12 | . . . . 12 Explosions 6 | . . . . 6 Melee . | . . . . . Knockbacks 12 | . . . 7 5 Impact . | . . . . . Kinetic 12 | . . . 7 5 Secondary . | . . . . . Self-Inflicted Damage 27 | . . . . 27 Shots 1 | . . . . 1 Rammed 1 | . . . . 1 Targets Rammed 5 | . 1 . 3 1 Kicked 4 | . 1 . 3 . Crushed . | . . . . . Highest Temperature 250 | . 82 . 99 250 Average Temperature 28 | . 43 . 20 27 Received Heat Transfer 531 | . 264 . 117 150 Siege Activations . | . . . . . Martial Activations . | . . . . . Shielding Activations . | . . . . . Robots Disrupted . | . . . . . Combat Hostiles . | . . . . . Robots Corrupted . | . . . . . Combat Hostiles . | . . . . . Parts Fried . | . . . . . Impact Corruptions . | . . . . . Robots Melted . | . . . . . Combat Hostiles . | . . . . . Parts Melted . | . . . . . Heat Transferred 111 | . . . . 111 Parts Sabotaged . | . . . . . Parts Stolen . | . . . . . Parts Stripped . | . . . . . Power Chain Reactions . | . . . . . Alert | -11 -10 -9 -9 -9 ------- Run | Yrd Mat Mat Sto Gar Maximum Alert Level 3 | . 1 . 1 3 Low Security (%) 33 | 100 99 100 49 . Level 1 29 | . . . 50 22 Level 2 21 | . . . . 43 Level 3 16 | . . . . 33 Level 4 . | . . . . . Level 5 . | . . . . . High Security . | . . . . . Max Security . | . . . . . Peak Influence 896 | . 192 68 397 896 Initial 254 | . . 68 20 254 Average 336 | . 85 59 152 561 Influence Increases 2035 | . 299 . 924 812 Destroy 0b10 Robot/C 1260 | . 200 . 580 480 Destroy 0b10 Robot/NC 35 | . 10 . 20 5 Destroy Leader 186 | . 44 . 142 . Allied During Kill 78 | . . . 78 . Successful Hack 25 | . . . 11 14 Disable Machine 60 | . . . 60 . Anti-Garrison Action 250 | . . . . 250 Destroy Structure 51 | . . . 3 48 Partial Spotted 15 | . . . 15 . Lose Combat Pursuer 75 | . 45 . 15 15 Influence Decreases 1139 | . 137 114 581 307 Entered New Map 259 | . . 94 28 137 Time Decay 550 | . 127 20 403 . Lost Part 140 | . 10 . 10 120 Lost Ally 190 | . . . 140 50 Squads Dispatched 7 | . 1 1 5 . Investigation 1 | . . . 1 . Extermination . | . . . . . Reinforcement 3 | . 1 1 1 . Assault 2 | . . . 2 . Garrison 1 | . . . 1 . Intercept . | . . . . . Searches Triggered . | . . . . . Construction Impeded . | . . . . . Haulers Reinforced . | . . . . . Active Scanning Responses . | . . . . . Cargo Convoy Interrupts . | . . . . . Stealth | -11 -10 -9 -9 -9 --------- Run | Yrd Mat Mat Sto Gar Distress Signals 6 | . 2 . 4 . Communications Jammed . | . . . . . Distress Signals . | . . . . . Times Spotted 84 | . 15 6 34 29 Peak Tracking Total 7 | . 5 5 7 3 Tactical Retreats 4 | . 2 . 1 1 Traps | -11 -10 -9 -9 -9 ------- Run | Yrd Mat Mat Sto Gar Traps Triggered 6 | . . . 2 4 Indirectly . | . . . . . Trap Hack Attempts . | . . . . . Triggered . | . . . . . Disarmed . | . . . . . Reprogrammed . | . . . . . Reused . | . . . . . Traps Extracted . | . . . . . Installed . | . . . . . Triggered . | . . . . . Machines | -11 -10 -9 -9 -9 ---------- Run | Yrd Mat Mat Sto Gar Machines Disabled 8 | . . . 4 4 Max in Single Turn 1 | . . . 1 1 Garrison Relay 3 | . . . . 3 Machines Repaired . | . . . . . Machines Dismantled . | . . . . . Machines Sabotaged . | . . . . . Overloaded Fab Kills . | . . . . . Hacking | -11 -10 -9 -9 -9 --------- Run | Yrd Mat Mat Sto Gar Machines Accessed 11 | . 1 . 8 2 Terminals 10 | . 1 . 7 2 Fabricators . | . . . . . Repair Stations . | . . . . . Recycling Units . | . . . . . Scanalyzers . | . . . . . Garrison Access 1 | . . . 1 . Total Hacks 22 | . 1 . 19 2 Successful 10 | . . . 9 1 Failed 12 | . 1 . 10 1 Catastrophic 4 | . . . 4 . Database Lockouts . | . . . . . Manual . | . . . . . Terminals 20 | . 1 . 17 2 Fabricators . | . . . . . Repair Stations . | . . . . . Recycling Units . | . . . . . Scanalyzers . | . . . . . Garrison Access 2 | . . . 2 . Terminal Hacks 9 | . . . 8 1 Record 1 | . . . 1 . Prototype ID Bank 1 | . . . 1 . Open Door 1 | . . . 1 . Emergency Access Points 1 | . . . 1 . Alert Level 1 | . . . 1 . Locate Traps 1 | . . . 1 . Reinforcement Status 1 | . . . 1 . Zone Layout 1 | . . . 1 . Garrison Registry 1 | . . . . 1 Fabricator Hacks . | . . . . . Repair Station Hacks . | . . . . . Recycling Unit Hacks . | . . . . . Scanalyzer . | . . . . . Garrison Access Hacks 1 | . . . 1 . Unlock Access 1 | . . . 1 . Unauthorized Hacks . | . . . . . Terminals . | . . . . . Fabricators . | . . . . . Repair Stations . | . . . . . Recycling Units . | . . . . . Scanalyzers . | . . . . . Garrison Access . | . . . . . Data Cores Recovered 1 | . . . 1 . Used . | . . . . . Hacking Detections 8 | . 1 . 6 1 Full Trace Events 2 | . . . 2 . Feedback Events . | . . . . . Feedback Blocked . | . . . . . Robot Schematics Acquired . | . . . . . Robots Built . | . . . . . Authchips . | . . . . . Time . | . . . . . Total Robot Build Rating . | . . . . . Part Schematics Acquired . | . . . . . Parts Built . | . . . . . Authchips . | . . . . . Time . | . . . . . Total Part Build Rating . | . . . . . Part Studies Acquired . | . . . . . Parts Repaired . | . . . . . Time . | . . . . . Parts Recycled . | . . . . . Recycled Matter . | . . . . . Retrieved Matter . | . . . . . Retrieved Components . | . . . . . Parts Scanalyzed . | . . . . . Part Schematics Acquired . | . . . . . Parts Damaged . | . . . . . Bothacking | -11 -10 -9 -9 -9 ------------ Run | Yrd Mat Mat Sto Gar Used RIF Installer . | . . . . . Robots Hacked . | . . . . . Non-combat . | . . . . . Combat . | . . . . . Robot Hacks Applied . | . . . . . Relay Couplers Released 14 | . . . . 14 Machine Destruction 14 | . . . . 14 Fabnet Peak Effective % . | . . . . . Robots Rewired . | . . . . . Allies Hacked . | . . . . . Hacks Repelled . | . . . . . Allies | -11 -10 -9 -9 -9 -------- Run | Yrd Mat Mat Sto Gar Total Allies 2 | . . . 2 . Largest Group 2 | . . . 2 . Highest-Rated Group 62 | . . . 62 . Highest-Rated Ally 31 | . . . 31 . Total Orders 6 | . . . . 6 EXPLORE 6 | . . . . 6 Ally Attacks 48 | . . . 48 . Total Damage 811 | . . . 811 . Kills 16 | . . . 16 . Allies Corrupted . | . . . . . Allies Melted . | . . . . . Intel | -11 -10 -9 -9 -9 ------- Run | Yrd Mat Mat Sto Gar Active Infowar (turns) 1160 | . 277 51 286 546 Optics 574 | . 277 51 246 . Seismic 586 | . . . 40 546 Robot Analysis Total . | . . . . . Derelict Logs Recovered . | . . . . . Drone Launches 16 | . . . 14 2 Drone Recoveries 1 | . . . . 1 Exploration | -11 -10 -9 -9 -9 ------------- Run | Yrd Mat Mat Sto Gar Turns Passed 2888 | 77 309 51 1061 1390 Spaces Moved 1800 | 51 129 35 654 931 Core 108 | 10 . . . 98 Treads . | . . . . . Legs 1692 | 41 129 35 654 833 Wheels . | . . . . . Hover . | . . . . . Flight . | . . . . . Fastest Speed 50 | 50 120 120 120 50 Average Speed 117 | 130 123 120 120 114 Slowest Speed 260 | 200 190 120 190 260 Overloaded Moves . | . . . . . Propulsion Burnouts . | . . . . . Robots Hopped . | . . . . . Potential Cave-ins . | . . . . . Cave-ins Triggered . | . . . . . Exploration Rate (%) 31 | 5 21 4 67 61 Regions Visited 4 Branch Regions 1 Pre-discovered Areas . | . . . . . Known Exits Taken 1 | . . . 1 . Unknown Exits Taken 3 | 1 1 1 . . Scrap Searched . | . . . . . Spaces Dug . | . . . . . Terrain Destroyed 37 | . . . 1 36 Melee . | . . . . . Projectile 1 | . . . 1 . AOE 36 | . . . . 36 Terrain Rammed . | . . . . . Walls Destroyed . | . . . . . Machines Disabled . | . . . . . Actions | -11 -10 -9 -9 -9 --------- Run | Yrd Mat Mat Sto Gar Total 2232 | 58 198 41 847 1088 Wait 156 | . 1 . 116 39 Move 1796 | 50 128 34 654 930 Hop . | . . . . . Pick Up 19 | 2 5 2 3 7 Fast Attach 15 | 6 2 1 3 3 Attach 12 | . . 1 2 9 Detach . | . . . . . Swap 22 | . 7 1 7 7 Drop 15 | . 5 1 6 3 Fire 180 | . 49 1 46 84 Melee . | . . . . . Ram 1 | . . . . 1 Kick 4 | . 1 . 3 . Crush . | . . . . . Escape Stasis 5 | . . . . 5 Rewire . | . . . . . Trap . | . . . . . Miscellaneous 7 | . . . 7 . Route ------- -11/Scrapyard -10/Materials -9/Materials (discovered 2 exits: *Sto x2) -9/Storage -9/Garrison (discovered 3 exits: [*Mat x3]) History --------- Turn | Location | Event 16 | -11/Scrapyard | Discovered new exit (range 15) 78 | -11/Scrapyard | Entered Materials 362 | -10/Materials | Discovered new exit (range 3) 387 | -10/Materials | Entered another Materials area 387 | -9/Materials | Evolved 2 slots: Propulsion x1, Utility x1 393 | -9/Materials | Discovered new exit (range 15) 433 | -9/Materials | Discovered new exit (range 17) 438 | -9/Materials | Entered Storage 568 | -9/Storage | Build established: Scavenger-Mutant 869 | -9/Storage | Met a pair of Derelict thieves 995 | -9/Storage | Build established: Mutant 1418 | -9/Storage | Lost 5 allies 1459 | -9/Storage | Garrison activated, responded to threat 1494 | -9/Storage | Lost 4 allies 1499 | -9/Storage | Identified exit to Garrison 1499 | -9/Storage | Entered Garrison 1499 | -9/Garrison | Accompanied by 4 allies 1531 | -9/Garrison | Triggered checkpoint 1589 | -9/Garrison | Lost 3 allies 1599 | -9/Garrison | Triggered checkpoint 1603 | -9/Garrison | Triggered checkpoint 1763 | -9/Garrison | Triggered checkpoint 1763 | -9/Garrison | Triggered checkpoint 1795 | -9/Garrison | Triggered checkpoint 1904 | -9/Garrison | Discovered new exit (range 25) 1927 | -9/Garrison | Triggered checkpoint 2123 | -9/Garrison | Garrison Relay disabled 2183 | -9/Garrison | Discovered new exit (range 24) 2183 | -9/Garrison | Discovered new exit (range 75) 2183 | -9/Garrison | Discovered new exit (range 35) 2342 | -9/Garrison | Garrison Relay disabled 2423 | -9/Garrison | Garrison Relay disabled 2626 | -9/Garrison | Core integrity fell below 50% 2722 | -9/Garrison | Attempted to access garrison exit controls, blocked by remote lockdown 2745 | -9/Garrison | Core integrity fell below 20% 2766 | -9/Garrison | Lost 6 parts (1p2n3w) 2839 | -9/Garrison | Released all parts (6) 2864 | -9/Garrison | Lost 3 parts (1n2w) 2889 | -9/Garrison | Destroyed by S-10 Pest with Light Assault Rifle Last Messages --------------- Destroyed Hvy. Assault Rifle. Carbon-fiber Leg destroyed. H-55 Commando destroyed. M-13 Machinist destroyed. The unstable cave ceiling collapses. Mni. Grenade Launcher destroyed. Y-45 Defender destroyed. The unstable cave ceiling collapses. Released Lgt. Ion Engine. Released Med. Storage Unit. Released Imp. Terrain Scan Processor. Released Seismic Detector. Released Beam Rifle. Released Mni. Grenade Launcher. [Achievement: Live, Flee, And Rebuild] The unstable cave ceiling collapses. U/6O=YDNXP6LOH4B3,LYO8PAFUA/V D Slammed into S-10 Pest. S-10 Pest destroyed. Acquired 20 matter. Map ----- +----------------------------------------------------+ | ???????????????????????#"""#??# #???#" " ####??? | | ???????????????????????#" "#??# #???#" " + #??? | | ???????????????????????#" "#??# #???#" " ## #??? | | ???????????????????????#" "#??# #???#"# #### #??? | | ???????????????????????#^^^#??# #???### #### #??? | | ???###################### #####+####### # # #??? | | ???# * + + + #??? | | ???# ! "= # ###??? | | ???# ################### ###"""######### #????? | | ???# ################??# ### #???????####????? | | ???# ##""""""""""" "#### ###+##???????????????? | | ???# ##"=" "" " "" "## # # ## #????????????????? | | ???# ##"=" " ! ]# # ## #????????????????? | | ???# ##"= [ [*! # # #???###??????????? | | ???# ##" ! # # #???# #??????????? | | ???# ##" ### # # #??##"##?????????? | | ???# ##" = # # ## #### T#?????????? | | ???# ##"=" # < ##?????????? | | ???# ##"="=" # ## ####### #??????????? | | ???# ##"""" [ ## #### ## #?????###??????????? | | ???# ####### # ## # # #??????????????????? | | ???# #?????## # ## ## # #??????????????????? | | ???# #??????######## # ## #??????????????????? | | ???# #?????????????#### # ##??????????????????? | | ???# #??????????????## #= ###???????????????????? | | ???# #???????????????###@=#?????????????????????? | | ???# #?????????????????#*[#?????????????????????? | | ???#"+################### s#?????????????????????? | | ???# #?????????????????????? | | ???# " #?????????????????????? | | ???# ##############+#### #?????????????????????? | | ???# #????????????# #### #?????????????????????? | | ???# #????????????# ## C ######????????????????? | | ???# #????????????# / ^+ #???###########??? | | ???# #????????????# ## ^^#### ##### """""#??? | | #### #????????????# #### #??# + " "#??? | | ## #????????????# #??# #??# ##### "#??? | | ## ##???????##### #??# #??# #???# " "###? | | #???????# ## #### ####+##### """ """"#? | | #???????# + + + " ###? | | #???????########## + #??? | | ## #????????????????###### #### #??? | | ## ###??????????????????#"""""#?# #??? | | " #??????????????????#######?###########??? | | " #???????????????????????????????????????? | | " #???????????????????????????????????????? | | " #???????????????????????????????????????? | | ## ###????????????????###???#####????????????? | | ## ##########?????????# #??##! !#????????????? | | ###########+####! !#????????????? | +----------------------------------------------------+ Best States ------------- Heat Dissipation 28 Energy Generation 14 Energy Capacity 265 Matter Stores 300 Matter Capacity 300 Sight Range 18 Terrain Scan Density 110 Evasion (%) 55 Item Schematics ----------------- None Robot Schematics ------------------ None Fabricated ------------ Nothing Repaired ---------- Nothing Studied --------- None Alien Tech Used ----------------- None Achievements -------------- Live, Flee, And Rebuild Release The Drones! Challenges ------------ None Game ------ Seed ControlBraceReconstructor Manual? 0 Play Time 00:42:22 Cumulative 6.1 hours Start 2025.10.28 @ 01:20:34 End 2025.10.28 @ 02:06:20 Sessions 1 Manual Loads 0 Difficulty Rogue Special Mode None Game No. 6 Rogue 6 Adventurer 0 Explorer 0 Win Type - Total 0 Types 0/0/0/0/0/0/0/0/0/0 Lore% 4 Gallery% 8 Achievement% 10 Wizard Run 0 Options --------- Layout 1 ASCII 0 Keyboard 0 Movement Mouse Keybinds 0 Fullscreen 2 Font 24/Smallcaps Map View 50x35 Zoom Use 0% Tactical HUD 0 Map Filters NONE Filters NONE Steam 1 RUN: 13e73743-e09a-47f2-bbc1-c52d87f72368